Workbook

Sheet Introduction
A3: . . . . . . . . . . . . . . . . . . . . . . . . . . . . . . . . . . . . . . . . . . . . . . . . .
A5: Guidelines For Estimating
A6: Saskatoon Berry Production Costs
B11: The following budget estimates the cost of producing Saskatoon Berries in Manitoba. General Manitoba Agriculture recommendations are assumed in using fertilizers and chemical inputs. These figures provide an economic evaluation of the crops and estimated yields required to cover all costs. Costs include labour, investment and depreciation, but do not include management costs, nor do they necessarily represent the average cost of production in Manitoba.
B20: These budgets may be adjusted by putting in your own figures. As a producer you are encouraged to calculate your own costs of production for various crops. On each farm, costs and yields differ due to soil type, climate and agronomic practices.
A25: is also available to help
B26: determine machinery costs.
B29: This tool is available as an Excel worksheet at:
B45: Note: This budget is only a guide and is not intended as an in depth study of the cost of production of this industry. Interpretation and use of this information is the responsibility of the user. If you need help with a budget, contact a Farm Management Specialist.

Sheet Summary
B2: ="Saskatoon Berry - Cost of Production Summary " -> Saskatoon Berry - Cost of Production Summary
B3: ="Based on "&'Fixed Cost Input'!C6&" acres" -> Based on 20 acres
D4: Establishment1 | E4: Picking Years
D5: Cost $/acre | E5: Cost /acre | F5: Cost/lb | G5: Your Cost
B6: Operating Costs
A7: A | B7: Establishment cost (amortized)1 | D7: ="-" -> - | E7: ='Fixed Cost Input'!C26 -> 813.9483075 | F7: ="-" -> -
B8: Seed & Treatment | D8: ='Seed, Fertilizer & Chemical'!D6 -> 2116 | E8: ="-" -> - | F8: =ROUND(E7/$E$35,4) -> 0.3876
B9: Fertilizer | D9: ='Seed, Fertilizer & Chemical'!J23 -> 134.5639567 | E9: ='Seed, Fertilizer & Chemical'!J24 -> 89.43181132 | F9: =ROUND(E9/$E$35,4) -> 0.0426
B10: Pesticide | D10: ='Seed, Fertilizer & Chemical'!E30 -> 44 | E10: ='Seed, Fertilizer & Chemical'!E31 -> 35 | F10: 0.0167
B11: Fuel | D11: ='Operating Costs'!G19 -> 86.63 | E11: ='Operating Costs'!G24 -> 43.44 | F11: 0.0207
B12: Irrigation | D12: ='Operating Costs'!D32 -> 10.64 | E12: ='Operating Costs'!E32 -> 5.32 | F12: 0.0025
B13: Machinery Operating & Lease | D13: ='Operating Costs'!$D$6+'Fixed Cost Input'!$D$71 -> 25 | E13: ='Operating Costs'!$D$6+'Fixed Cost Input'!$D$71 -> 25 | F13: 0.0119
B14: Labour - hired | D14: ='Operating Costs'!I44 -> 903 | E14: ='Operating Costs'!I56 -> 832.1212121 | F14: 0.3962
B15: Crop Insurance (Establishment only) | D15: ='Operating Costs'!$C$84 -> 116.6 | E15: ="-" -> - | F15: ="-" -> -
B16: Hail Insurance | D16: ='Operating Costs'!$C$85 -> 0 | E16: ='Operating Costs'!$C$85 -> 0 | F16: =ROUND(E16/$E$35,4) -> 0
B17: Land Taxes | D17: ='Operating Costs'!$D$4 -> 20 | E17: ='Operating Costs'!$D$4 -> 20 | F17: 0.0095
B18: Miscellaneous Cost | D18: ='Operating Costs'!D68 -> 308 | E18: ='Operating Costs'!E68 -> 110 | F18: 0.0524
B19: Rental and Custom Charges | D19: ='Operating Costs'!H78 -> 300 | E19: ='Operating Costs'!H79 -> 0 | F19: 0
B20: Repairs & Maintenance Cost | D20: ='Operating Costs'!D73 -> 253.1625 | E20: ='Operating Costs'!D73 -> 253.1625 | F20: 0.1206
B21: Interest on Operating | D21: =SUM(D8:D20)*'Operating Costs'!D3 -> 302.231752 | E21: =SUM(E7:E20)/2*'Operating Costs'!D3 -> 77.95983408 | F21: 0.0371
B22: Total Operating Costs | D22: =SUM(D8:D21) -> 4619.828209 | E22: =SUM(E7:E21) -> 2305.383665 | F22: =SUM(F8:F21) -> 1.0978
A24: B. | B24: Fixed Costs
B25: Land Costs | D25: ='Fixed Cost Input'!$C$14 -> 296.2935137 | E25: ='Fixed Cost Input'!$C$14 -> 296.2935137 | F25: =ROUND(E25/$E$35,4) -> 0.1411
B26: Machinery Costs | D26: ='Fixed Cost Input'!$G$16 -> 2012.08961 | E26: ='Fixed Cost Input'!$G$16 -> 2012.08961 | F26: =ROUND(E26/$E$35,4) -> 0.9581
B27: Storage & Irrigation Costs | D27: ='Fixed Cost Input'!G33 -> 1483.054962 | E27: ='Fixed Cost Input'!G33 -> 1483.054962 | F27: =ROUND(E27/$E$35,4) -> 0.7062
B28: Total Fixed Costs | D28: =SUM(D25:D27) -> 3791.438085 | E28: =SUM(E25:E27) -> 3791.438085 | F28: =ROUND(E28/$E$35,4) -> 1.8054
A30: C. | B30: Total Costs | D30: =D22+D28 -> 8411.266294 | E30: =E22+E28 -> 6096.82175 | F30: =ROUND(E30/$E$35,4) -> 2.9032
B32: Profitability Analysis
B33: Estimated Farmgate
B34: Price per Unit | E34: ='Seed, Fertilizer & Chemical'!E68 -> 6.5
B35: Target Yield per acre (lbs) | E35: =ROUNDUP('Seed, Fertilizer & Chemical'!E67, -2) -> 2100
B36: Gross Revenue / acre | E36: =ROUND(((E34)*E35),2) -> 13650
B38: Operating Expense Ratio | E38: =SUM(E22/E36) -> 0.1688925762
B40: Marginal Returns
B41: Over Operating Costs | E41: =SUM(E36-E22) -> 11344.61633
B42: Over Total Costs (Net Profit) | E42: =SUM(E36-E30) -> 7553.17825
B45: Breakeven Analysis
B46: Breakeven Price ($ Per lb.)
B47: Operating Costs | E47: =E22/E35 -> 1.097801745
B48: Over Fixed Costs | E48: =(E28/E35) -> 1.805446707
B49: Over Total Costs | E49: =SUM(E47:E48) -> 2.903248453
B51: Breakeven Yield (lbs)
B52: Over Operating Costs | E52: =ROUND(E22/E34,0) -> 355
B53: Over Fixed Costs | E53: =ROUND(E28/E34, 0) -> 583
B54: Over Total Costs | E54: =ROUND(E30/E34, 0) -> 938
B56: Breakeven Yield Risk Ratio | E56: =SUM(E35/E54) -> 2.23880597
B57: (Yield per acre/BE Yield)
A58: ="1. Saskatoon establisment net cost of $"&TEXT(D30,"0.00")&" (total cost minus estimated gross revenue) were amortized over "&'Fixed Cost Input'!C23&" sasakatoon picking years." -> 1. Saskatoon establisment net cost of $8411.27 (total cost minus estimated gross revenue) were amortized over 16 sasakatoon picking years.
A59: Note: This budget is only a guide and is not intended as an in depth study of the cost of production of this industry. Interpretation and utilization of this information is the responsibility of the user.

Sheet Seed, Fertilizer & Chemical
A1: Saskatoon Berry Planting
B3: Transplanting Rate (plants/ac) | C3: Plant Cost/each | D3: Cost per Acre
A4: Saskatoon Plants | B4: 880 | C4: 2.25 | D4: =C4*B4 -> 1980
A5: Grass Seed (lbs) | B5: 40 | C5: 3.4 | D5: =C5*B5 -> 136
C6: TOTAL | D6: =SUM(D4:D5) -> 2116
A8: Fertilizer
C10: Bulk Price | E10: Actual Nutrient | S10: Nitrogen | U10: Sulphur
A11: Fertilizer Type | C11: $/tonne | E11: $/lb | S11: Usage | U11: Usage
A12: Nitrogen: (urea) 46-0-0 | C12: 900 | E12: =SUM(C12/(2204.5855*0.46)) -> 0.8874782761 | S12: 1 | U12: -
A13: Nitrogen: (NH3) 82-0-0 | C13: 1090 | E13: =SUM(C13/(2204.5855*0.82)) -> 0.6029561079 | S13: 0 | U13: -
A14: Nitrogen: (liquid) 28-0-0 | C14: 440 | E14: =SUM(C14/(2204.5855*0.28)) -> 0.7128000123 | S14: 0 | U14: -
A15: Phosphorus: 11-52-0 | C15: 1250 | E15: =SUM((C15-(E12*(0.11*2204.5855)))/(2204.5855*0.52)) -> 0.902648845 | U15: - | W15: -
A16: Potash: 0-0-60 | C16: 650 | E16: =SUM(C16/(2204.5855*0.6)) -> 0.4914000085 | U16: - | W16: -
A17: Sulphur: 20.5-0-0-24 | C17: 850 | E17: =SUM((C17-(E12*(0.205*2204.5855)))/(2204.5855*0.24)) -> 0.8484456668 | U17: 1 | W17: -
A18: MES S15: 13-33-0-15 | C18: 1140 | E18: =SUM((C18-(E12*(0.13*2204.5855))-(E15*(0.33*2204.5855)))/(2204.5855*0.15)) -> 0.6923847611 | J18: - | U18: 0
S19: ***HIDE***
B20: Amount of Actual Pounds of Elements Applied Per Acre | T20: 82-0-0 | X20: 28-0-0 | AD20: 46-0-0 | AH20: 11-52-0 | AK20: 0-0-60 | AN20: 20.5-0-0-24 | AQ20: 13-33-0-15
B21: Nitrogen | D21: Phosphorus | F21: Potash | H21: Sulphur | J21: Total | S21: preseed | T21: preseed | U21: preseed | V21: preseed | W21: suppl | X21: suppl | Y21: suppl | Z21: suppl | AA21: blend | AB21: blend | AC21: blend | AD21: blend | AE21: blend | AF21: blend | AG21: blend | AH21: blend | AI21: blend | AJ21: blend | AK21: blend | AL21: blend | AM21: blend | AN21: blend | AO21: blend | AP21: blend | AQ21: blend | AR21: blend | AS21: blend | AT21: N phos
A22: Crop | B22: lbs | C22: $/acre | D22: lbs | E22: $/acre | F22: lbs | G22: $/acre | H22: lbs | I22: $/acre | J22: $/acre | S22: N actual | T22: N lbs | U22: N MT | V22: N cost | W22: N actual | X22: N lbs | Y22: N MT | Z22: N cost | AA22: N phos | AB22: N sul1 | AC22: N sul2 | AD22: N urea | AE22: N lbs | AF22: N MT | AG22: N cost | AH22: phos lbs | AI22: phos MT | AJ22: phos cost | AK22: potash | AL22: pot MT | AM22: pot cost | AN22: sul 1 lbs | AO22: sul 1 MT | AP22: sul 1 cost | AQ22: sul 2 lbs | AR22: sul 2 MT | AS22: sul 2 cost | AT22: lbs
A23: Saskatoon Planting | B23: 25 | C23: =IF(SUM($S$12:$S$14)<>100%,"ERROR",SUM(V23+Z23+AG23)) -> 3.413355535 | D23: 100 | E23: =AJ23 -> 109.0377463 | F23: 45 | G23: =AM23 -> 22.11285494 | H23: 0 | I23: =IF(SUM($U$17:$U$18)<>100%,"ERROR",AP23+AS23) -> 0 | J23: =C23+E23+G23+I23 -> 134.5639567 | S23: =SUM(B23*$S$13) -> 0 | T23: =MAXA(0,(S23)/(0.82)) -> 0 | U23: =(T23)/2204.6 -> 0 | V23: =SUM(U23*$C$13) -> 0 | W23: =SUM(B23*$S$14) -> 0 | X23: =MAXA(0,(W23)/(0.28)) -> 0 | Y23: =(X23)/2204.6 -> 0 | Z23: =SUM(Y23*$C$14) -> 0 | AA23: =SUM(AH23*0.11) -> 21.15384615 | AB23: =SUM(AN23*0.205) -> 0 | AC23: =SUM(AQ23*0.13) -> 0 | AD23: =SUM(B23-(AA23+AB23+AC23+W23+S23)) -> 3.846153846 | AE23: =MAXA(0,(AD23)/(0.46)) -> 8.361204013 | AF23: =(AE23)/2204.6 -> 0.003792617261 | AG23: =SUM(AF23*$C$12) -> 3.413355535 | AH23: =MAXA(0,(D23-(AQ23*0.33))/0.52) -> 192.3076923 | AI23: =(AH23)/2204.6 -> 0.087230197 | AJ23: =SUM(AI23*$C$15) -> 109.0377463 | AK23: =SUM(F23/0.6) -> 75 | AL23: =(AK23)/2204.6 -> 0.03401977683 | AM23: =SUM(AL23*$C$16) -> 22.11285494 | AN23: =MAXA(0,SUM(H23*$U$17)/0.24) -> 0 | AO23: =(AN23)/2204.6 -> 0 | AP23: =SUM(AO23*$C$17) -> 0 | AQ23: =MAXA(0,SUM(H23*$U$18)/0.15) -> 0 | AR23: =(AQ23)/2204.6 -> 0 | AS23: =SUM(AR23*$C$18) -> 0
A24: Saskatoon Picking | B24: 25 | C24: =IF(SUM($S$12:$S$14)<>100%,"ERROR",SUM(V24+Z24+AG24)) -> 12.80008326 | D24: 50 | E24: =AJ24 -> 54.51887313 | F24: 45 | G24: =AM24 -> 22.11285494 | H24: 0 | I24: =IF(SUM($U$17:$U$18)<>100%,"ERROR",AP24+AS24) -> 0 | J24: =C24+E24+G24+I24 -> 89.43181132 | S24: =SUM(B24*$S$13) -> 0 | T24: =MAXA(0,(S24)/(0.82)) -> 0 | U24: =(T24)/2204.6 -> 0 | V24: =SUM(U24*$C$13) -> 0 | W24: =SUM(B24*$S$14) -> 0 | X24: =MAXA(0,(W24)/(0.28)) -> 0 | Y24: =(X24)/2204.6 -> 0 | Z24: =SUM(Y24*$C$14) -> 0 | AA24: =SUM(AH24*0.11) -> 10.57692308 | AB24: =SUM(AN24*0.205) -> 0 | AC24: =SUM(AQ24*0.13) -> 0 | AD24: =SUM(B24-(AA24+AB24+AC24+W24+S24)) -> 14.42307692 | AE24: =MAXA(0,(AD24)/(0.46)) -> 31.35451505 | AF24: =(AE24)/2204.6 -> 0.01422231473 | AG24: =SUM(AF24*$C$12) -> 12.80008326 | AH24: =MAXA(0,(D24-(AQ24*0.33))/0.52) -> 96.15384615 | AI24: =(AH24)/2204.6 -> 0.0436150985 | AJ24: =SUM(AI24*$C$15) -> 54.51887313 | AK24: =SUM(F24/0.6) -> 75 | AL24: =(AK24)/2204.6 -> 0.03401977683 | AM24: =SUM(AL24*$C$16) -> 22.11285494 | AN24: =MAXA(0,SUM(H24*$U$17)/0.24) -> 0 | AO24: =(AN24)/2204.6 -> 0 | AP24: =SUM(AO24*$C$17) -> 0 | AQ24: =MAXA(0,SUM(H24*$U$18)/0.15) -> 0 | AR24: =(AQ24)/2204.6 -> 0 | AS24: =SUM(AR24*$C$18) -> 0
A26: Crop Protection
B28: Weed Control | C28: Disease Control | D28: Insect Control | E28: Total Cost
B29: $/ac | C29: $/ac | D29: $/ac | E29: $/ac
A30: Planting | B30: 40 | C30: 0 | D30: 4 | E30: =B30+C30+D30 -> 44
A31: Picking | B31: 6 | C31: 26 | D31: 3 | E31: =B31+C31+D31 -> 35
A32: Note:
A33: Pre-emergent burn off is not included in weed control costs.
A34: Chemical costs do not include year end rebates or bundling discounts.
A35: Disease Control costs do not include custom application costs.
A37: Crop Rotations and Yields
C39: Acres | D39: Prod'n | E39: Total
B40: Year | C40: ='Fixed Cost Input'!C6 -> 20 | D40: lb. per acre | E40: prod'n (lb)
B41: 1 | C41: planted | D41: 0 | E41: =IF($C$40*D41=0,"",$C$40*D41) -> 
B42: 2 | C42: 2nd year establ. | D42: 0
B43: 3 | C43: 3rd year establ. | D43: 0
B44: 4 | C44: 1st year harvest | D44: 250 | E44: 5000
B45: 5 | C45: 2nd year harvest | D45: 650 | E45: 13000
B46: 6 | C46: 3rd year harvest | D46: 1350 | E46: 27000
B47: 7 | C47: 4th year harvest | D47: 1900 | E47: 38000
B48: 8 | C48: 5th year harvest | D48: 2350 | E48: 47000
B49: 9 | C49: 6th year harvest | D49: 2800 | E49: 56000
B50: 10 | C50: 7th year harvest | D50: 2800 | E50: 56000
B51: 11 | C51: 8th year harvest | D51: 2800 | E51: 56000
B52: 12 | C52: renovated-no prod'n | D52: 0
B53: 13 | C53: 1st year harvest | D53: 450 | E53: 9000
B54: 14 | C54: 2nd year harvest | D54: 1000 | E54: 20000
B55: 15 | C55: 3rd year harvest | D55: 1900 | E55: 38000
B56: 16 | C56: 4th year harvest | D56: 2800 | E56: 56000
B57: 17 | C57: 5th year harvest | D57: 2800 | E57: 56000
B58: 18 | C58: 6th year harvest | D58: 2800 | E58: 56000
B59: 19 | C59: 7th year harvest | D59: 2800 | E59: 56000
B60: 20 | C60: 8th year harvest | D60: 2800 | E60: 56000
A66: Total Production (lb) - Years 4 to 20 | E66: =SUM(E41:E60) -> 645000
A67: Average production per acre (lb) - years 4 to 20 | E67: =ROUNDUP((ROUND(E66/COUNT(E41:E60),1))/'Fixed Cost Input'!C6,-2) -> 2100
A68: Market Price per Pound | E68: 6.5 | G68: ="($"&TEXT(SUM(E68*5),"#.00")&" per 5lb basket or pail)" -> ($32.50 per 5lb basket or pail)
A70: Note: This budget is only a guide and is not intended as an in depth study of the cost of production of this industry. Interpretation and utilization of this information is the responsibility of the user.

Sheet Operating Costs
A1: Operating Costs
B3: Interest Rate on Operating | D3: 0.07
B4: Land Taxes ($/acre) | D4: 20
B5: Labour rate ($/hour) | D5: 20
B6: Machinery Operating ($/acre) | D6: 25
B7: Cost per roll of plastic mulch | D7: 300
B8: Fuel Cost ($/litre) | D8: 1.1
A10: Field Fuel Usage
C12: Times | D12: Width | E12: Speed | F12: Tractor | G12: Fuel | H12: Capacity | I12: Time | J12: Maint
B13: Operation | C13: Over | D13: Feet | E13: MPH | F13: HP | G13: Per Acre | H13: Ac/Hr | I13: Hr./Ac. | J13: & Lub
B14: Transplanting | C14: 1 | D14: 5 | E14: 1 | F14: 50 | G14: =(0.25*(F14*0.75))*I14*$D$8 -> 20.625 | H14: =(D14*E14)/10 -> 0.5 | I14: =IF(ISERROR(1/H14),0,(1/H14)*(C14)) -> 2 | J14: =0.1*G14 -> 2.0625
B15: Cultivate | C15: 2 | D15: 5 | E15: 5 | F15: 50 | G15: =(0.25*(F15*0.75))*I15*$D$8 -> 8.25 | H15: =(D15*E15)/10 -> 2.5 | I15: =IF(ISERROR(1/H15),0,(1/H15)*(C15)) -> 0.8 | J15: =0.1*G15 -> 0.825
B16: Mowing | C16: 9 | D16: 6 | E16: 5 | F16: 50 | G16: =(0.25*(F16*0.75))*I16*$D$8 -> 30.9375 | H16: =(D16*E16)/10 -> 3 | I16: =IF(ISERR(1/H16),0,(1/H16)*C16) -> 3 | J16: =0.1*G16 -> 3.09375
B17: Spray | C17: 1 | D17: 25 | E17: 4 | F17: 50 | G17: =(0.25*(F17*0.75))*I17*$D$8 -> 1.03125 | H17: =(D17*E17)/10 -> 10 | I17: =IF(ISERROR(1/H17),0,(1/H17)*(C17)) -> 0.1 | J17: =0.1*G17 -> 0.103125
B18: Mulch application | C18: 1 | D18: 4 | E18: 2 | F18: 100 | G18: =(0.25*(F18*0.75))*I18*$D$8 -> 25.78125 | H18: =(D18*E18)/10 -> 0.8 | I18: =IF(ISERROR(1/H18),0,(1/H18)*(C18)) -> 1.25 | J18: =0.1*G18 -> 2.578125
C19: Total Establishment Field Operation Fuel Costs ($/acre) | G19: =ROUND(SUM(G14:G18),2) -> 86.63
B21: Spray | C21: 5 | D21: 25 | E21: 4 | F21: 50 | G21: =(0.25*(F21*0.75))*I21*$D$8 -> 5.15625 | H21: =(D21*E21)/10 -> 10 | I21: =IF(ISERR(1/H21),0,(1/H21)*C21) -> 0.5 | J21: =0.1*G21 -> 0.515625
B22: Mowing | C22: 6 | D22: 6 | E22: 4 | F22: 50 | G22: 25.78125 | H22: 2.4 | I22: 2.5 | J22: 2.578125
B23: Harvesting | C23: 2 | D23: 16.5 | E23: 2 | F23: 100 | G23: 12.5 | H23: 3.3 | I23: 0.6060606061 | J23: 1.25
C24: Total Picking Field Operation Fuel Costs ($/acre) | G24: =ROUND(SUM(G21:G23),2) -> 43.44
A26: Irrigation Cost
B28: Irrigation Fuel Costs | D28: Establishment | E28: Picking
B29: Inches water applied | D29: 2 | E29: 1
B30: Hours/acre for 1" of water | D30: 4 | E30: 4
B31: Hourly pumping costs | D31: 1.33 | E31: 1.33
C32: Total Cost ($/acre) | D32: =D29*D30*D31 -> 10.64 | E32: =E29*E30*E31 -> 5.32
A34: Labour Cost
C36: Establishment Hours Required per Acre | I36: Total ($/acre)
C37: Est 1 | D37: Est 2 | E37: Est 3 | F37: Est 4 | G37: Total
B38: Weed Control | C38: 2 | D38: 0.5 | E38: 0.5 | F38: 0.5 | G38: =SUM(C38:F38) -> 3.5
B39: Pest control | C39: 0 | D39: 2 | E39: 2 | F39: 3 | G39: 7
B40: Mowing | C40: 0 | D40: 1.5 | E40: 1.5 | F40: 1.5 | G40: 4.5
B41: Irrigation | C41: 4 | D41: 3 | E41: 3 | F41: 3 | G41: 13
B42: Mulch application | C42: 10 | D42: 0 | E42: 0 | F42: 0 | G42: 10
B43: Field Operations | C43: =SUM(I14:I18) -> 7.15 | D43: 0 | E43: 0 | F43: 0 | G43: 7.15
B44: Total Labour Hours | C44: =SUM(C38:C43) -> 23.15 | D44: =SUM(D38:D43) -> 7 | E44: =SUM(E38:E43) -> 7 | F44: =SUM(F38:F43) -> 8 | G44: =SUM(G38:G43) -> 45.15 | H44: hrs | I44: =G44*$D$5 -> 903
C46: Production Hours Required per Acre | I46: Total ($/acre)
G47: Total
B48: Weed Control | C48: 1 | G48: =SUM(C48:F48) -> 1
B49: Pest control | C49: 3 | G49: 3
B50: Mowing | C50: 1.5 | G50: 1.5
B51: Irrigation | C51: 3 | G51: 3
B52: Pruning | C52: 20 | G52: 20
B53: Harvesting | C53: 4.5 | G53: 4.5
B54: Initial processing | C54: 5 | G54: 5
B55: Field Operations | C55: =SUM(I21:I23) -> 3.606060606 | G55: 3.606060606
B56: Total Labour Hours | C56: =SUM(C48:C55) -> 41.60606061 | G56: =SUM(G48:G55) -> 41.60606061 | H56: hrs | I56: =G56*$D$5 -> 832.1212121
A58: Miscellaneous Cost
D60: Establishment | E60: Picking
B61: Plant (total $) | D61: 150 | E61: 150
B62: Advertising (total $) | D62: 500 | E62: 500
B63: Utilities (total $) | D63: =150+1000 -> 1150 | E63: =150+1000 -> 1150
B64: Mulch rolls per acre | C64: 0.66 | D64: =C64*$D$7*'Fixed Cost Input'!C6 -> 3960
B65: Other Costs ($/acre) | C65: 20 | D65: =SUM(C65*'Fixed Cost Input'!C6) -> 400 | E65: =D65 -> 400
B66: ="Total Miscellaneous Cost ($/"&'Fixed Cost Input'!C6&" acres)" -> Total Miscellaneous Cost ($/20 acres) | D66: =SUM(D61:D65) -> 6160 | E66: =SUM(E61:E65) -> 2200
B68: Total Miscellaneous Cost ($/acre) | D68: =D66/'Fixed Cost Input'!C6 -> 308 | E68: =E66/'Fixed Cost Input'!C6 -> 110
A70: Repairs & Maintenance Cost
B72: % rate of investment | D72: 0.015
B73: Total Repair & Maintenance Costs | D73: =D72*('Fixed Cost Input'!D42+'Fixed Cost Input'!D62+'Fixed Cost Input'!D71)/'Fixed Cost Input'!C6 -> 253.1625
A75: Rental and Custom Charges
B77: Rental & Custom Charges | D77: Transplanting | E77: Mulch | F77: Harvest | G77: General | H77: Total
B78: Establishment | D78: 100 | E78: 200 | F78: - | G78: - | H78: =SUM(D78:G78) -> 300
B79: Picking | D79: - | E79: - | F79: - | G79: - | H79: =SUM(D79:G79) -> 0
A81: Crop & Hail Insurance
C83: Crop Insurance
B84: Establishment | C84: =('Seed, Fertilizer & Chemical'!B4/100)*13.25 -> 116.6
B86: Note: This budget is only a guide and is not intended as an in depth study of the cost of production of this industry. Interpretation and utilization of this information is the responsibility of the user.

Sheet Fixed Cost Input
A2: Fixed Costs
A4: Land | F4: Machinery
A5: Average Land Value | C5: 5000 | F5: Total Investment ($/acre) | G5: =ROUND(D62/C6,2) -> 9127.5
A6: Saskatoon berry Acres | C6: 20 | F6: Residual Value (End of Useful Life) | G6: 0.1
A7: Owned Land Equity | C7: 0.3 | F7: Useful Life (years) | G7: 15
A8: Land Financed | C8: =SUM(1-C7) -> 0.7 | F8: Owned Equipment Equity | G8: 0.2
A9: Land Opportunity Cost | C9: 0.015 | F9: Equipment Financed | G9: =SUM(1-G8) -> 0.8
A10: Land cost ($/acre) | F10: Machinery Opportunity Cost | G10: 0.015
A11: Finance Rate & Term | B11: 0.06 | C11: 25 | D11: Years | F11: Machinery Cost ($/acre)
A12: Principal & Interest Cost | C12: =-PMT(B11,C11,(C5*C8),0) -> 273.7935137 | F12: Finance Rate & Term | G12: 0.07 | H12: 7 | I12: Years
A13: Owned Land Opportunity Cost | C13: =SUM(C5*C7)*C9 -> 22.5 | F13: Principal & Interest Cost | G13: =-PMT(G12,H12,G5*G9) -> 1354.90961
A14: Total Cost | C14: =SUM(C12:C13) -> 296.2935137 | F14: Machinery Depreciation Cost | G14: =(G5-(G5*G6))/G7 -> 547.65
F15: Owned Machinery Opportunity Cost | G15: =SUM(G5*G9)*(G10) -> 109.53
A16: Saskatoon Establishment | F16: Total Cost | G16: =SUM(G13:G15) -> 2012.08961
A17: Establishment cost ($/acre) | C17: =ROUND(Summary!D30,0) -> 8411
A18: Saskatoon Berry Acres | C18: =C6 -> 20 | F18: Storage & Irrigation
A19: Establishment Equity | C19: 0.1 | F19: Total Investment Storage ($/ac) | G19: =ROUND((D37+D38+D39+D40)/C6,2) -> 6250
A20: ="Establishment Financed ("&TEXT(C17*C20,"$#,###")&" per acre)" -> Establishment Financed ($7,570 per acre) | C20: =SUM(1-C19) -> 0.9 | F20: Total Investment Irrigation ($/ac) | G20: =ROUND(D41/C6,2) -> 1500
A21: Establishment Opportunity Cost (Investment Rate) | C21: 0.015 | F21: Residual Value (End of Useful Life) | G21: 0.25
A22: Establishment cost ($/acre) | F22: Useful Life Storage (years) | G22: 20
A23: Finance Rate & Term | B23: =G12 -> 0.07 | C23: =COUNT('Seed, Fertilizer & Chemical'!E41:E60) -> 16 | D23: Years | F23: Useful Life Irrigation (years) | G23: 15
A24: Principle & Interest Cost | C24: =-PMT(B23,C23,C17*C20,0) -> 801.3318075 | F24: Owned S & I Equity | G24: 0.2
A25: Owned Land Opportunity Cost | C25: =SUM(C17*C19)*(C21) -> 12.6165 | F25: S & I Financed | G25: =SUM(1-G24) -> 0.8
A26: Total Cost | C26: =SUM(C24:C25) -> 813.9483075 | F26: S & I Opportunity Cost | G26: 0.015
F27: Storage & Irrigation Cost ($/acre)
F28: Finance Rate & Term | G28: 0.07 | H28: 7 | I28: Years
F29: Principal & Interest Cost | G29: =-PMT(G28,H28,(G19+G20)*G25) -> 1150.429962
F30: Storage Depreciation Cost | G30: =(G19-(G19*G21))/G22 -> 234.375
F31: Irrigation Depreciation Cost | G31: =(G20-(G20*G21))/G23 -> 75
F32: Owned S & I Opportunity Cost | G32: =SUM((G19+G20)*G24)*(G26) -> 23.25
A33: Total Debt ($/acre) | C33: =((C5)*C8)+(G5*G9)+((G19+G20)*G25)+(C17*C20) -> 24571.9 | F33: Total Cost | G33: =SUM(G29:G32) -> 1483.054962
A35: Storage & Irrigation
B36: Market Value | C36: Saskatoon Usage % | D36: Saskatoon Allocation
A37: Storage Shed | B37: 60000 | C37: 1 | D37: =SUM(B37*C37) -> 60000
A38: Quick Freeze Unit | B38: 30000 | C38: 1 | D38: =SUM(B38*C38) -> 30000
A39: Holding Freezer | B39: 15000 | C39: 1 | D39: 15000
A40: Sorting Table & Sizer | B40: 20000 | C40: 1 | D40: 20000
A41: Irrigation Equipment | B41: 30000 | C41: 1 | D41: 30000
A42: Storage & Irrigation TOTAL | B42: =SUM(B37:B41) -> 155000 | D42: =SUM(D37:D41) -> 155000
A43: Storage & Irrigation Total per acre | B43: =B42/C6 -> 7750 | D43: =D42/C6 -> 7750
A45: Equipment Inventory and Current Values
A47: Power Equipment | B47: Market Value | C47: Saskatoon Usage % | D47: Saskatoon Allocation | F47: Harvest Equipment | G47: Market Value | H47: Saskatoon Usage % | I47: Saskatoon Allocation
A48: Tractor - 50 HP | B48: 60000 | C48: 1 | D48: =SUM(B48*C48) -> 60000 | F48: Harvester | G48: 60000 | H48: 1 | I48: =SUM(G48*H48) -> 60000
A49: Truck | B49: 15000 | C49: 1 | D49: =SUM(B49*C49) -> 15000 | F49: Pruning Equipment | G49: 4000 | H49: 1 | I49: =SUM(G49*H49) -> 4000
B50: 0 | C50: 0 | D50: =SUM(B50*C50) -> 0 | G50: 0 | H50: 0 | I50: 0
B51: 0 | C51: 0 | D51: 0 | G51: 0 | H51: 0 | I51: 0
A52: Total Inventory | B52: =SUM(B48:B51) -> 75000 | D52: =SUM(D48:D51) -> 75000 | F52: Total Inventory | G52: =SUM(G48:G51) -> 64000 | I52: =SUM(I48:I51) -> 64000
A54: Seeding & Tillage | B54: Market Value | C54: Saskatoon Usage % | D54: Saskatoon Allocation | F54: Spraying & Misc. | G54: Market Value | H54: Saskatoon Usage % | I54: Saskatoon Allocation
A55: Mechanical Transplanter | B55: 5000 | C55: 1 | D55: =SUM(B55*C55) -> 5000 | F55: Sprayer - 25 ft | G55: 10000 | H55: 1 | I55: =SUM(G55*H55) -> 10000
A56: Rotovator | B56: 8000 | C56: 0.9 | D56: =SUM(B56*C56) -> 7200 | F56: Fertilizer Spreader | G56: 15000 | H56: 1 | I56: =SUM(G56*H56) -> 15000
A57: Cultivator | B57: 1500 | C57: 0.9 | D57: 1350 | F57: Mower | G57: 5000 | H57: 1 | I57: =SUM(G57*H57) -> 5000
B58: 0 | C58: 0 | D58: 0 | G58: 0 | H58: 0 | I58: =SUM(G58*H58) -> 0
B59: 0 | C59: 0 | D59: 0 | G59: 0 | H59: 0 | I59: =SUM(G59*H59) -> 0
A60: Total Inventory | B60: =SUM(B55:B59) -> 14500 | D60: =SUM(D55:D59) -> 13550 | F60: Total Inventory | G60: =SUM(G55:G59) -> 30000 | I60: =SUM(I55:I59) -> 30000
A62: Owned Equipment TOTAL | B62: =SUM(D52+I52+I60+D60+D42) -> 337550 | D62: =SUM(D52+D60+I52+I60) -> 182550
A63: Owned Equipment TOTAL / acre | B63: =B62/C6 -> 16877.5 | D63: =D62/C6 -> 9127.5
A65: Leased Equipment Inventory and Current Values
A66: Seeding, Tillage, Spraying etc | B66: Annual Lease | C66: Saskatoon Usage % | D66: Saskatoon Allocation
B67: 0 | C67: 0 | D67: 0
B68: 0 | C68: 0 | D68: 0
B69: 0 | C69: 0 | D69: 0
A70: Lease Equipment TOTAL | B70: =SUM(B67:B69) -> 0 | D70: =SUM(D67:D69) -> 0
A71: Leased Equipment TOTAL / acre | B71: =B70/C6 -> 0 | D71: =D70/C6 -> 0
A73: Note: This budget is only a guide and is not intended as an in depth study of the cost of production of this industry. Interpretation and utilization of this information is the responsibility of the user.

Sheet Saskatoon Berry Production Info
A2: Saskatoon Berry Production in Manitoba
A4: The projected saskatoon berry production costs in this publication have been prepared to assist you in developing your own production costs.
A7: The investment and cash input costs of growing saskatoon berries in Manitoba are substantial. Detailed budgeting and good financial planning are essential ingredients for success. The capital investment to establish and operate a 20 acre orchard are substantial. The establishment costs are incurred in the first 4 years and production doesn't begin until year 5. Saskatoons do not reach peak yield levels until 6-8 years after transplanting. However, a properly maintained orchard should maintain uniform yields for 20-30 years.
A15: Commercial saskatoon production in Manitoba has been an important part of diversification in the province. The majority of the saskatoon orchards are harvested by hand for U-Pick sales and pre-picked direct farm sales; but mechanical harvesting for sales into processing has increased over the past few years.
A21: Growers entering the industry need these basic requirements: (1) suitable land with adequate drainage and shelterbelts, (2) access to an adequate quantity and quality of water for irrigation, (3) financial resources that permit a significant level of investment on infrastructure and input costs, (4) the ability to apply management skills to the crop in a precisely timed manner, (5) the ability to determine market potential, and (6) the willingness to accept risk.
A27: It is advised that new growers assess their potential customer base and marketing opportunities prior to establishing a saskatoon orchard and that they should start small and expand their orchards over several years.

Sheet Assumptions
A1: Other Assumptions
A3: Fuel Costs: Includes fuel used for field work, trucking in inputs and trucking out production.
A5: Machinery Operating Costs: Includes costs for maintenance, repairs, licenses and insurance.
A7: Crop Insurance:
A8: Establishment coverage is available through MASC.
A10: Other Costs: Includes overhead expenses - hydro, telephone, accounting, buildings, supplies and insurance, etc.
A12: Land Taxes: The average cost based on land tax assessment and mill rates of a sample of municipalities growing crops less provincial tax rebate.
A14: Interest On Operating: | D14: ="Interest charges on operating costs are calculated at "&'Operating Costs'!D3*100&"% for six months." -> Interest charges on operating costs are calculated at 7% for six months.
A16: Land Cost:
A17: ="Based on approximate average land values. Budget assumed "&'Fixed Cost Input'!C8*100&"% financed at "& 'Fixed Cost Input'!B11*100&"% for "&'Fixed Cost Input'!C11&" years, plus "&'Fixed Cost Input'!C9*100&"% land equity opportunity cost. Budget can be used to estimate cashflow by removing investment cost." -> Based on approximate average land values. Budget assumed 70% financed at 6% for 25 years, plus 1.5% land equity opportunity cost. Budget can be used to estimate cashflow by removing investment cost.
A19: ="P&I Cost (based on "&TEXT('Fixed Cost Input'!C5*('Fixed Cost Input'!C6)*'Fixed Cost Input'!C8,"$#,###")&" Mortgage) = $"&TEXT('Fixed Cost Input'!C12*('Fixed Cost Input'!C6),"#,###")&" payments per year) / "&'Fixed Cost Input'!C6&" acres = $"&TEXT('Fixed Cost Input'!C12,"0.00")&"/acre)" -> P&I Cost (based on $70,000 Mortgage) = $5,476 payments per year) / 20 acres = $273.79/acre)
A20: ="Investment = (Total Investment x Owned Equity %) x Investment Rate % (eg. (($"&TEXT('Fixed Cost Input'!C5,"#,###")&" x "&'Fixed Cost Input'!C7*100&"%) x "&'Fixed Cost Input'!C9*100&"%) = $"&TEXT('Fixed Cost Input'!C13,"0.00")&"/acre)" -> Investment = (Total Investment x Owned Equity %) x Investment Rate % (eg. (($5,000 x 30%) x 1.5%) = $22.50/acre)
A22: Machinery Cost:
A23: ="Based on approximate average machinery values. Budget assumed "&'Fixed Cost Input'!G9*100&"% financed at "&'Fixed Cost Input'!G12*100&"% for "&'Fixed Cost Input'!H12&" years, depreciation costs over "&'Fixed Cost Input'!G7&" years with a "&'Fixed Cost Input'!G6*100&"% residual value, plus "&'Fixed Cost Input'!G10*100&"% machinery equity opportunity cost. Budget can be used to estimate cashflow by removing depreciation and investment cost. " -> Based on approximate average machinery values. Budget assumed 80% financed at 7% for 7 years, depreciation costs over 15 years with a 10% residual value, plus 1.5% machinery equity opportunity cost. Budget can be used to estimate cashflow by removing depreciation and investment cost.
A26: ="P&I Cost (based on "&TEXT('Fixed Cost Input'!B62*'Fixed Cost Input'!G9,"$#,###")&" Loans) = $"&TEXT('Fixed Cost Input'!G13*('Fixed Cost Input'!C6),"#,###")&" payments per year) / "&'Fixed Cost Input'!C6&" acres = $"&TEXT('Fixed Cost Input'!G13,"0.00")&"/acre)" -> P&I Cost (based on $270,040 Loans) = $27,098 payments per year) / 20 acres = $1354.91/acre)
A27: ="Depreciation (Useage Cost) = (Total Investment - Residual Value) / Years Useful Life (eg. ($"&'Fixed Cost Input'!G5&" - ($"&'Fixed Cost Input'!G5&" x "&'Fixed Cost Input'!G6*100&"%)) / "&'Fixed Cost Input'!G7&" = $"&TEXT('Fixed Cost Input'!G14,"0.00")&"/acre)" -> Depreciation (Useage Cost) = (Total Investment - Residual Value) / Years Useful Life (eg. ($9127.5 - ($9127.5 x 10%)) / 15 = $547.65/acre)
A28: ="Investment = (Total Investment x Owned Equity %) x Investment Rate % (eg. ($"&'Fixed Cost Input'!G5&" x "&'Fixed Cost Input'!G8*100&"%) x "&'Fixed Cost Input'!G10*100&"%) = $"&TEXT('Fixed Cost Input'!G15,"0.00")&"/acre)" -> Investment = (Total Investment x Owned Equity %) x Investment Rate % (eg. ($9127.5 x 20%) x 1.5%) = $109.53/acre)
A30: Depreciation Cost = Original Cost - Salvage Value
A31: =" Useful Life" -> Useful Life
A32: Investment Cost = Original Cost + Salvage Value x Investment Rate
A33: =" 2" -> 2
A34: Estimated Farmgate Values:
A35: ="Target crop prices are based on $"&TEXT('Seed, Fertilizer & Chemical'!E68,"0.00")&" value per pound sold." -> Target crop prices are based on $6.50 value per pound sold.
A36: ="Target crop yields are based on historical yield from Manitoba crop average of "&TEXT(ROUND('Seed, Fertilizer & Chemical'!E67,0),"#,###")&" lbs/ac." -> Target crop yields are based on historical yield from Manitoba crop average of 2,100 lbs/ac.
A38: Plant Costs:
A39: Plant cost based on Prairie Fruit Growers Association member plant discount price.
A41: Miscellaneous Costs:
A42: Includes: plant costs, advertising, utilities, and rental & custom charges.
A44: Profitability, Breakeven & Risk Analysis Formulas:
A45: ="Gross Revenue = Price per unit x Yield per acre (eg. picking years: $"&TEXT(Summary!E34,"0.00")&"/lbs x "&Summary!E35&"lbs/ac = $"&TEXT(Summary!E36, "0.00")&"/ac)" -> Gross Revenue = Price per unit x Yield per acre (eg. picking years: $6.50/lbs x 2100lbs/ac = $13650.00/ac)
A46: ="Net Profit = Gross Revenue - Total Cost (eg. picking years: $"&TEXT(Summary!E36,"0.00")&" gross revenue - $"&TEXT(Summary!E30,"0.00")&" total cost = $"&TEXT(Summary!E42,"0.00")&" per acre)" -> Net Profit = Gross Revenue - Total Cost (eg. picking years: $13650.00 gross revenue - $6096.82 total cost = $7553.18 per acre)
A47: ="Operating Expense Ratio = (Operating Cost / Gross Revenue) x 100 (eg. picking years: $"&TEXT(Summary!E22,"0.00")&" operating expense / $"&TEXT(Summary!E36,"0.00")&" total cost = "&TEXT(Summary!E38*100,"0.0")&"%)" -> Operating Expense Ratio = (Operating Cost / Gross Revenue) x 100 (eg. picking years: $2305.38 operating expense / $13650.00 total cost = 16.9%)
A48: ="Breakeven Price = Cost / Target Yield (eg. picking years: $"&TEXT(Summary!E30,"0.00")&" / "&Summary!E35&" lbs = $"&TEXT(Summary!E49,"0.00")&" per lbs)" -> Breakeven Price = Cost / Target Yield (eg. picking years: $6096.82 / 2100 lbs = $2.90 per lbs)
A49: ="Breakeven Yield = Cost / Price per Unit (eg. picking years: $"&TEXT(Summary!E30,"0.00")&" / $"&TEXT(Summary!E34,"0.00")&" lbs = "&TEXT(Summary!E54,"0.0")&" lbs)" -> Breakeven Yield = Cost / Price per Unit (eg. picking years: $6096.82 / $6.50 lbs = 938.0 lbs)
A50: ="Breakeven Yield Risk Ratio = (Yield per Acre / Breakeven Yield) x 100 (eg. picking years: "&Summary!E35&" lbs/ac / "&TEXT(Summary!E54,"0.0")&" bu BE = "&ROUND(Summary!E56*100,0)&"%)" -> Breakeven Yield Risk Ratio = (Yield per Acre / Breakeven Yield) x 100 (eg. picking years: 2100 lbs/ac / 938.0 bu BE = 224%)
L52: June, 2025
